bitfinex-derivatives/quotes_ETHF0:USTF0_20250410
["timestamp","ask_amount","ask_price","bid_price","bid_amount"]
[1744263886045,5.4411,1620.0,1619.9,1.23511]
[1744263886346,5.44103,1620.0,1619.9,4.44291]
[1744263886549,4.206,1620.0,1619.9,4.44291]
[1744263886746,4.206,1620.0,1619.9,7.22751]
[1744263887843,4.83136021,1620.1,1620.0,1.23503]
[1744263888145,4.83136021,1620.1,1620.0,3.93233]
[1744263888548,6.06632021,1620.1,1620.0,44.73233]
[1744263888744,1.23496,1620.1,1620.0,44.73233]
[1744263888944,1.23496,1620.1,1620.0,43.4973]
[1744263889145,2.80526,1620.1,1620.0,44.73233]
[1744263889647,2.80526,1620.1,1620.0,3.93233]
[1744263890747,7.12506021,1620.2,1620.1,1.23496]
[1744263890940,4.83136021,1620.2,1620.1,5.99616]
[1744263891335,6.06624021,1620.2,1620.1,5.99616]
[1744263892839,4.83136021,1620.2,1620.1,5.99616]
[1744263893543,10.27116021,1620.3,1620.2,1.23488]
[1744263893842,10.27116021,1620.3,1620.2,1.5868]
[1744263894448,10.27116021,1620.3,1620.2,2.82168]
[1744263895049,11.86276021,1620.3,1620.2,1.5868]
[1744263895357,1.23496,1620.1,1620.0,1.0688]
[1744263895544,1.23503,1620.0,1619.9,5.599]
[1744263895746,7.05213,1620.0,1619.9,5.599]
[1744263895948,8.13033,1620.0,1619.9,4.4429]
[1744263896852,8.13033,1620.0,1619.9,1.2351]
[1744263897045,4.205,1620.0,1619.9,4.4429]
[1744263897344,4.205,1620.0,1619.9,6.0444]
[1744263898252,16.10528021,1620.2,1620.1,1.23496]
[1744263898454,16.10528021,1620.2,1620.1,4.44276]
[1744263898642,14.87036021,1620.2,1620.1,4.44276]
[1744263898847,16.10524021,1620.2,1620.1,6.72616]
[1744263899252,10.27124021,1620.2,1620.1,6.72616]
[1744263899850,10.27124021,1620.2,1620.1,4.44276]
[1744263900055,1.23496,1620.1,1620.0,2.797]
[1744263900254,2.88026,1620.1,1620.0,2.797]
[1744263900453,2.88026,1620.1,1620.0,6.0048]
[1744263901352,1.23496,1620.1,1620.0,6.0048]
[1744263901550,10.27130021,1620.2,1620.1,1.23496]
[1744263901752,10.27130021,1620.2,1620.1,2.88266]
[1744263902060,1.23503,1620.0,1619.9,3.52765]
[1744263902253,1.23503,1620.0,1619.9,5.17535]
[1744263903060,1.23511,1619.9,1619.8,3.2078]
[1744263903259,7.00921,1619.9,1619.8,3.2078]
[1744263903461,8.17461,1619.9,1619.8,4.44298]
[1744263903756,8.17461,1619.9,1619.8,1.23518]
[1744263904260,8.17461,1619.9,1619.8,6.09068]
[1744263904561,4.205,1619.9,1619.8,6.09068]
[1744263905560,5.44011,1619.9,1619.8,6.09068]
[1744263906063,4.205,1619.9,1619.8,6.09068]
[1744263910963,5.44011,1619.9,1619.8,6.09068]
[1744263911657,4.205,1619.9,1619.8,6.09068]
[1744263911962,10.27135021,1620.1,1620.0,1.23503]
[1744263912260,10.27135021,1620.1,1620.0,4.44283]
[1744263912459,10.27135021,1620.1,1620.0,6.09703]
[1744263912660,11.84745021,1620.1,1620.0,6.09703]
[1744263912865,11.84745021,1620.1,1620.0,4.862]
[1744263913164,11.84745021,1620.1,1620.0,3.2078]
[1744263913763,11.84745021,1620.1,1620.0,4.44283]
[1744263914155,11.84745021,1620.1,1620.0,3.2078]
[1744263914768,11.84745021,1620.1,1620.0,4.44283]
[1744263916062,4.83136021,1620.1,1620.0,4.44283]
[1744263916368,4.83136021,1620.1,1620.0,5.61843]
[1744263916559,4.83136021,1620.1,1620.0,7.26883]
[1744263916759,0.92634744,1620.1,1620.0,7.26883]
[1744263918052,0.92634744,1620.1,1620.0,13.26483]
[1744263919565,0.92634744,1620.1,1620.0,14.43063]
[1744263920067,7.62221063,1620.3,1620.2,1.23488]
[1744263920460,7.62221063,1620.3,1620.2,4.44268]
[1744263920967,7.62221063,1620.3,1620.2,6.05418]
[1744263922262,1.23496,1620.1,1620.0,6.78416]
[1744263922864,2.91366,1620.1,1620.0,6.78416]
[1744263923065,2.91366,1620.1,1620.0,8.38476]
[1744263923264,7.11666,1620.1,1620.0,8.38476]
[1744263924067,5.8817,1620.1,1620.0,8.38476]
[1744263924563,7.11666,1620.1,1620.0,8.38476]
[1744263924763,5.8817,1620.1,1620.0,8.38476]
[1744263924964,7.11666,1620.1,1620.0,8.38476]
[1744263927369,11.96501063,1620.1,1620.0,8.38476]
[1744263927574,11.96501063,1620.1,1620.0,7.1498]
[1744263928071,11.96501063,1620.1,1620.0,5.17703]
[1744263928269,11.96501063,1620.1,1620.0,8.38483]
[1744263930774,12.89129825,1620.1,1620.0,8.38483]
[1744263931471,12.89129825,1620.1,1620.0,7.1498]
[1744263931774,1.23526,1619.7,1619.6,0.00925783]
[1744263932071,5.43826,1619.7,1619.6,4.45239783]
[1744263932271,5.43826,1619.7,1619.6,42.04459783]
[1744263932674,4.203,1619.7,1619.6,45.25239783]
[1744263932971,4.203,1619.7,1619.6,46.90239783]
[1744263933172,4.203,1619.7,1619.6,48.00869783]
[1744263933874,5.43814,1619.9,1619.8,1.23518]
[1744263934075,4.203,1620.0,1619.9,1.23511]
[1744263934276,4.203,1620.0,1619.9,3.92661]
[1744263934876,5.77463825,1620.1,1620.0,1.23503]
[1744263935072,5.77463825,1620.1,1620.0,7.18823]
[1744263935875,15.4275481,1620.2,1620.1,1.23496]
[1744263935876,8.1527,1620.2,1620.1,1.23496]
[1744263936078,8.1527,1620.2,1620.1,2.84396]
[1744263936275,3.9497,1620.2,1620.1,2.84396]
[1744263937279,2.7148,1620.2,1620.1,2.84396]
[1744263937480,4.203,1620.3,1620.2,1.23488]
[1744263937671,4.203,1620.3,1620.2,7.16118]
[1744263937875,4.22103783,1620.6,1620.4,1.23468]
[1744263937876,1.23468,1620.5,1620.4,1.23468]
[1744263938073,0.00925783,1620.6,1620.5,1.23465]
[1744263938272,0.00925783,1620.6,1620.5,4.00605]
[1744263938479,0.00925783,1620.6,1620.5,5.12235]
[1744263939978,0.00925783,1620.6,1620.5,10.12235]
[1744263940179,0.00925783,1620.6,1620.5,16.11835]
[1744263940387,5.78166056,1620.6,1620.5,16.11835]
[1744263940681,5.78166056,1620.6,1620.5,56.91835]
[1744263941387,5.78166056,1620.6,1620.5,61.91835]
[1744263942785,5.78166056,1620.6,1620.5,56.91835]
[1744263943878,7.01623056,1620.6,1620.5,55.6837]
[1744263944083,8.69243056,1620.6,1620.5,55.6837]
[1744263944388,8.69243056,1620.6,1620.5,45.8]
[1744263944786,2.92002783,1620.6,1620.5,42.03465]
[1744263944977,2.92002783,1620.6,1620.5,40.8]
[1744263945485,1.23465,1620.5,1620.4,6.02377]
[1744263945790,2.91085,1620.5,1620.4,45.5891]
[1744263945985,2.91085,1620.5,1620.4,44.0078]
[1744263948091,6.6762,1620.5,1620.2,9.67164522]
[1744263948282,1.2348,1620.3,1620.2,9.67164522]
[1744263948483,1.23488,1620.2,1620.1,8.3309]
[1744263948689,1.23488,1620.2,1620.1,49.1309]
[1744263949298,1.23488,1620.2,1620.1,44.0078]
[1744263949499,3.90698,1620.2,1620.1,45.24276]
[1744263949693,3.90698,1620.2,1620.1,44.0078]
[1744263949894,2.83088,1620.2,1620.1,45.24276]
[1744263950094,2.83088,1620.2,1620.1,44.0078]
[1744263950401,1.23488,1620.2,1620.1,45.24276]
[1744263950897,8.06095,1620.4,1620.3,1.2348]
[1744263951105,7.00483,1620.4,1620.3,4.4426]
[1744263951598,7.00483,1620.4,1620.3,6.006]
[1744263951799,7.00483,1620.4,1620.3,4.7712]
[1744263952303,1.24387783,1620.6,1620.5,1.23465]
[1744263952600,1.24387783,1620.6,1620.2,7.1074]
[1744263952601,1.2348,1620.3,1620.2,7.1074]
[1744263952794,3.0868,1620.5,1620.1,40.8]
[1744263952795,1.23488,1620.2,1620.1,40.8]
[1744263952999,1.23496,1620.1,1620.0,1.5634]
[1744263953199,1.23503,1620.0,1619.9,4.2763]
[1744263953499,1.23511,1619.9,1619.8,40.8]
[1744263953707,1.23518,1619.8,1619.7,3.2078]
[1744263953891,2.79748,1619.8,1619.7,3.2078]
[1744263954094,1.23526,1619.7,1619.6,0.00925783]
[1744263954394,2.79756,1619.7,1619.6,0.00925783]
[1744263954588,7.79756,1619.7,1619.6,0.00925783]
[1744263955402,1.23534,1619.6,1619.5,9.67164522]
[1744263955606,10.20544,1619.6,1619.5,9.67164522]
[1744263955806,15.20544,1619.6,1619.5,9.67164522]
[1744263957093,1.23541,1619.5,1619.4,7.03881093]
[1744263957294,3.90831,1619.5,1619.4,5.14264093]
[1744263957495,8.90831,1619.5,1619.4,3.88855093]
[1744263957902,1.23564,1619.2,1619.1,1.549]
[1744263958096,5.43664,1619.2,1619.1,1.549]
[1744263959204,1.23572,1619.1,1619.0,0.00925783]
[1744263959413,2.76682,1619.1,1619.0,0.00925783]
[1744263959898,3.83942,1619.1,1619.0,0.00925783]
[1744263960297,1.23572,1619.1,1619.0,3.21705783]
[1744263960494,25.57812348,1619.7,1619.3,1.23551]
[1744263960690,1.23554,1619.4,1619.3,1.23555]
[1744263960894,4.61946,1619.6,1619.3,1.23555]
[1744263960895,1.23536,1619.6,1619.5,1.23538]
[1744263961406,8.20559348,1619.7,1619.6,1.23534]
[1744263961609,8.20559348,1619.7,1619.6,10.52054]
[1744263962306,9.44085348,1619.7,1619.6,10.52054]
[1744263962709,13.36048132,1619.7,1619.6,10.52054]
[1744263962901,12.12522132,1619.7,1619.6,4.2852]
[1744263963204,13.36048132,1619.7,1619.6,4.2852]
[1744263963707,1.23534,1619.6,1619.5,40.8]
[1744263963901,2.85274,1619.6,1619.5,44.0078]
[1744263964098,2.85274,1619.6,1619.5,3.2078]
[1744263964594,2.85274,1619.6,1619.5,4.44321]
[1744263966011,2.85274,1619.6,1619.5,3.2078]
[1744263966313,2.85274,1619.6,1619.5,4.44321]
[1744263966711,2.85274,1619.6,1619.5,3.2078]
[1744263967109,1.23534,1619.6,1619.5,4.44321]
[1744263967405,1.23534,1619.6,1619.5,3.2078]
[1744263970214,3.0885,1619.6,1619.2,3.48609]
[1744263970408,1.23534,1619.6,1619.5,3.2078]
[1744263970608,1.23557,1619.3,1619.2,5.4583]
[1744263970808,1.23557,1619.3,1619.2,3.2078]
[1744263971107,1.23572,1619.1,1619.0,40.80925783]
[1744263971313,1.23572,1619.1,1619.0,0.00925783]
[1744263971613,1.23572,1619.1,1619.0,3.21705783]
[1744263971812,1.23572,1619.1,1619.0,44.01705783]
[1744263972109,1.23572,1619.1,1619.0,4.45284783]
[1744263972312,1.23572,1619.1,1619.0,6.09004783]
[1744263972913,1.23572,1619.2,1619.1,1.23568]
[1744263973099,1.23572,1619.2,1619.1,2.87288]
[1744263973303,5.43772,1619.2,1619.1,1.6372]
[1744263973505,1.23572,1619.1,1619.0,3.21705783]
[1744263973707,1.23572,1619.1,1619.0,0.00925783]
[1744263974313,2.37982,1619.1,1619.0,0.00925783]
[1744263974608,5.58762,1619.1,1619.0,0.00925783]
[1744263975013,6.75402,1619.1,1619.0,0.00925783]
[1744263975506,11.75402,1619.1,1619.0,0.00925783]
[1744263976409,1.23595,1618.8,1618.7,1.5721]
[1744263976710,5.43695,1618.8,1618.7,1.5721]
[1744263977115,1.2361,1618.6,1618.5,3.2078]
[1744263977315,1.2361,1618.6,1618.5,1.5721]
[1744263977619,1.23618,1618.5,1618.4,1.103]
[1744263977817,5.43818,1618.5,1618.4,5.9067]
[1744263978700,5.43818,1618.5,1618.4,2.6989]
[1744263978900,5.43818,1618.5,1618.4,5.9067]
[1744263979113,5.43818,1618.5,1618.4,2.6989]
[1744263979513,4.202,1618.5,1618.2,3.2078]
[1744263979708,1.23633,1618.3,1618.2,4.8037]
[1744263981407,5.43833,1618.3,1618.2,4.8037]
[1744263982309,1.23641,1618.2,1618.1,1.1716]
[1744263982504,2.76051,1618.2,1618.1,1.1716]
[1744263983119,1.23648,1618.1,1618.0,1.6385]
[1744263983415,2.76058,1618.1,1618.0,1.6385]
[1744263985013,1.23648,1618.1,1618.0,2.87506]
[1744263985213,1.23646,1618.2,1618.1,1.23642]
[1744263985416,7.2929,1618.3,1618.1,1.23642]
[1744263985417,5.43839,1618.3,1618.2,1.23641]
[1744263985618,5.43839,1618.3,1618.2,1.075]
[1744263985915,5.43839,1618.3,1618.2,3.97881]
[1744263986107,5.43839,1618.3,1618.2,2.7424]
[1744263989720,5.43839,1618.3,1618.2,1.6674]
[1744263990017,6.96909,1618.3,1618.2,1.6674]
[1744263990320,5.43839,1618.3,1618.2,2.90381]
[1744263990515,4.202,1618.3,1618.2,2.90381]
[1744263990918,8.64804,1618.5,1618.4,1.23625]
[1744263991217,1.23624,1618.5,1618.4,1.23625]
[1744263991514,1.23624,1618.5,1618.4,2.4416]
[1744263991720,3.09065,1618.4,1618.2,0.8979]
[1744263991918,5.44033,1618.3,1618.2,1.5437]
[1744263992120,7.92753,1618.3,1618.2,1.5437]
[1744263992318,11.13533,1618.3,1618.2,1.5437]
[1744263993723,1.23648,1618.1,1618.0,2.0497]
[1744263993929,1.23648,1618.1,1618.0,3.6182]
[1744263994218,2.88628,1618.1,1618.0,3.6182]
[1744263994824,2.88628,1618.1,1618.0,1.5685]
[1744263995820,1.23656,1618.0,1617.9,3.2078]
[1744263996016,1.23664,1617.9,1617.8,0.9033]
[1744263996524,2.90764,1617.9,1617.8,4.1111]
[1744263996719,2.90764,1617.9,1617.8,5.7726]
[1744263997324,1.23686,1617.6,1617.5,7.23291]
[1744263997521,1.23686,1617.6,1617.5,2.18751]
[1744263998119,1.23686,1617.6,1617.5,0.9506]
[1744263998321,1.23686,1617.6,1617.5,2.18754]
[1744263998826,1.23686,1617.6,1617.5,2.6121]
[1744263999027,1.23686,1617.6,1617.5,3.84904]
[1744263999228,1.23686,1617.6,1617.5,2.6121]
[1744263999526,2.90246,1617.6,1617.5,2.6121]
[1744264000030,1.23694,1617.5,1617.4,3.2078]
[1744264000325,2.90254,1617.5,1617.4,3.2078]
[1744264000529,1.23694,1617.5,1617.4,3.2078]
[1744264000719,2.90254,1617.5,1617.4,3.2078]
[1744264002013,2.90254,1617.5,1617.4,4.44482]
[1744264002218,1.23694,1617.5,1617.4,3.2078]
[1744264002430,1.23694,1617.5,1617.4,4.1419]
[1744264002624,5.44194,1617.5,1617.4,7.89652]
[1744264003531,4.205,1617.5,1617.4,7.89652]
[1744264003834,1.24610783,1617.7,1617.4,6.6595]
[1744264004034,4.205,1617.6,1617.5,1.5553]
[1744264004226,4.205,1617.6,1617.5,6.00004]
[1744264005336,0.00925783,1617.7,1617.6,1.23686]
[1744264005538,1.24604783,1617.7,1617.6,2.88536]
[1744264005835,1.24604783,1617.7,1617.6,1.6485]
[1744264006037,1.24604783,1617.7,1617.6,2.88536]
[1744264006830,1.24604783,1617.7,1617.6,6.09316]
[1744264009139,1.24604783,1617.7,1617.6,1.6485]
[1744264009335,1.23694,1617.5,1617.4,10.69736]
[1744264009538,1.23694,1617.5,1617.4,3.4644]
[1744264009739,5.44794,1617.5,1617.4,3.4644]
[1744264010225,5.44794,1617.5,1617.4,4.70142]
[1744264010438,5.44794,1617.5,1617.4,3.4644]
[1744264010639,5.44794,1617.5,1617.4,4.70142]
[1744264013732,5.44794,1617.5,1617.4,3.4644]
[1744264014137,1.23702,1617.4,1617.3,3.2078]
[1744264014339,2.91772,1617.4,1617.3,3.2078]
[1744264014636,2.91772,1617.4,1617.3,5.96839]
[1744264015043,5.44799,1617.5,1617.4,1.23702]
[1744264015234,5.44799,1617.5,1617.4,2.76052]
[1744264015929,7.12869,1617.5,1617.4,2.76052]
[1744264016644,1.23702,1617.4,1617.3,3.2078]
[1744264016848,3.90292,1617.4,1617.3,3.2078]
[1744264017047,1.23709,1617.3,1617.2,4.7313]
[1744264017238,2.85989,1617.3,1617.2,4.7313]
[1744264017538,1.23717,1617.2,1617.1,1.8854]
[1744264017738,1.23732,1617.0,1616.9,1.23739]
[1744264018138,1.23732,1617.0,1616.9,1.6138]
[1744264018535,3.09389,1616.7,1616.4,5.996]
[1744264018731,1.23771,1616.5,1616.4,4.8216]
[1744264018937,5.45893783,1616.6,1616.5,1.23771]
[1744264019239,5.45893783,1616.6,1616.5,2.85151]
[1744264019440,0.00925783,1616.6,1616.5,3.83941]
[1744264020042,0.00925783,1616.6,1616.5,3.87477564]
[1744264020443,0.00925783,1616.6,1616.5,3.83941]
[1744264020749,0.00925783,1616.6,1616.5,3.90539287]
[1744264021248,0.00925783,1616.6,1616.5,3.93427732]
[1744264022541,1.24688783,1616.6,1616.5,3.93427732]
[1744264022741,0.00925783,1616.6,1616.5,3.93427732]
[1744264023141,1.24688783,1616.6,1616.5,3.93427732]
[1744264023350,1.24688783,1616.6,1616.5,3.96498508]
[1744264023646,0.00925783,1616.6,1616.5,3.96498508]
[1744264024550,0.00925783,1616.6,1616.5,3.99573383]
[1744264024941,0.00925783,1616.6,1616.5,4.02648258]
[1744264026756,0.00925783,1616.6,1616.5,4.05719669]
[1744264027649,0.00925783,1616.6,1616.5,9.05719669]
[1744264027849,0.00925783,1616.6,1616.5,9.0879108]
[1744264028345,0.00925783,1616.6,1616.5,15.11462491]
[1744264028652,0.00925783,1616.6,1616.5,20.11462491]
[1744264029154,5.45038,1617.0,1616.9,1.2374]
[1744264029354,5.45038,1617.0,1616.9,4.4452]
[1744264029654,5.45038,1617.0,1616.9,4.72441491]
[1744264029954,5.45038,1617.0,1616.9,4.75512902]
[1744264030146,5.45038,1617.0,1616.9,6.39792902]
[1744264030346,6.97968,1617.0,1616.9,6.39792902]
[1744264030547,4.213,1617.0,1616.9,6.42864313]
[1744264030746,1.24653783,1617.1,1617.0,1.23732]
[1744264031049,5.45953783,1617.1,1617.0,2.88012]
[1744264031243,5.45953783,1617.1,1617.0,3.25147724]
[1744264032152,1.24653783,1617.1,1617.0,3.25147724]
[1744264032449,0.00925783,1617.1,1617.0,3.25147724]
[1744264033154,0.00925783,1617.1,1617.0,3.2826709]
[1744264033353,0.00925783,1617.1,1617.0,8.2826709]
[1744264034154,0.00925783,1617.1,1617.0,8.3009622]
[1744264034762,0.00925783,1617.1,1617.0,14.2969622]
[1744264034957,4.82196402,1617.5,1617.4,1.23702]
[1744264035151,4.82196402,1617.5,1617.4,4.44482]
[1744264035357,4.82196402,1617.5,1617.4,4.8656622]
[1744264035661,4.82196402,1617.5,1617.4,6.5251622]
[1744264035867,4.82196402,1617.5,1617.4,12.5211622]
[1744264037064,4.82196402,1617.5,1617.4,17.5211622]
[1744264039164,4.82196402,1617.5,1617.4,14.3133622]
[1744264039369,4.82196402,1617.5,1617.4,17.5211622]
[1744264042576,6.44506402,1617.5,1617.4,14.6246422]
[1744264042879,8.57600402,1617.5,1617.4,9.6246422]
[1744264043080,17.80000402,1617.5,1617.4,0.4208422]
[1744264043778,12.80000402,1617.5,1617.4,4.8656622]
[1744264045286,17.80000402,1617.5,1617.4,3.6286422]
[1744264046485,17.80000402,1617.5,1617.4,4.8656622]
[1744264046486,12.97804,1617.5,1617.4,4.8656622]
[1744264046685,12.97804,1617.5,1617.4,3.6286422]
[1744264046879,12.97804,1617.5,1617.4,4.8656622]
[1744264047082,12.97804,1617.5,1617.4,3.6286422]
[1744264047283,12.97804,1617.5,1617.4,4.8656622]
[1744264047581,12.97804,1617.5,1617.4,3.6286422]
[1744264048181,7.97804,1617.5,1617.4,4.8656622]
[1744264048387,7.97804,1617.5,1617.4,3.6286422]
[1744264048585,7.97804,1617.5,1617.4,4.8656622]
[1744264048786,7.97804,1617.5,1617.4,3.6286422]
[1744264049387,12.97804,1617.5,1617.4,3.6286422]
[1744264049680,7.97804,1617.5,1617.4,3.6286422]
[1744264050080,12.80000402,1617.5,1617.4,3.6286422]
[1744264050687,12.80000402,1617.5,1617.4,0.4208422]
[1744264051190,17.80000402,1617.5,1617.4,0.4208422]
[1744264051982,21.00780402,1617.5,1617.4,0.4208422]
[1744264054288,24.34671178,1617.5,1617.4,0.4208422]
[1744264054688,30.18071178,1617.5,1617.4,0.4208422]
[1744264055189,25.18071178,1617.5,1617.4,0.4208422]
[1744264055891,16.13891178,1617.5,1617.4,3.6286422]
[1744264056092,16.13891178,1617.5,1617.4,4.8656622]
[1744264056287,14.90197178,1617.5,1617.4,4.8656622]
[1744264056488,16.13891178,1617.5,1617.4,3.6286422]
[1744264056790,16.13891178,1617.5,1617.4,4.8656622]
[1744264058191,8.16087178,1617.5,1617.4,4.8656622]
[1744264058391,0.92792575,1617.5,1617.4,7.5196622]
[1744264059094,0.92792575,1617.5,1617.4,18.5156622]
[1744264060391,0.92792575,1617.5,1617.4,23.5156622]
[1744264061093,0.92792575,1617.5,1617.4,24.01682846]
[1744264061391,0.92792575,1617.5,1617.4,23.5156622]
[1744264062992,0.00925783,1617.6,1617.5,1.23694]
[1744264063190,0.00925783,1617.6,1617.5,3.72924]
[1744264063490,0.00925783,1617.6,1617.5,4.1500822]
[1744264063692,0.00925783,1617.6,1617.5,10.1460822]
[1744264063887,0.00925783,1617.6,1617.5,20.1460822]
[1744264065592,7.83e-06,1617.6,1617.5,20.1460822]
[1744264072096,7.83e-06,1617.6,1617.5,15.1460822]
[1744264074798,7.83e-06,1617.6,1617.5,20.1460822]
[1744264075299,4.84030888,1618.2,1618.1,1.23648]
[1744264075498,4.84030888,1618.2,1618.1,4.44428]
[1744264075700,4.84030888,1618.2,1618.1,6.01458]
[1744264076404,6.43260888,1618.2,1618.1,6.4354222]
[1744264077704,4.84030888,1618.2,1618.1,6.4354222]
[1744264078102,4.84030888,1618.2,1618.1,11.4354222]
[1744264078404,0.00925783,1618.3,1618.2,1.23641]
[1744264078604,0.00925783,1618.3,1618.2,2.79511]
[1744264079297,0.00925783,1618.3,1618.2,3.2159522]
[1744264080502,1.66845783,1618.3,1618.2,8.2159522]
[1744264081799,2.90478783,1618.3,1618.2,6.6572522]
[1744264081992,3.76988783,1618.3,1618.2,6.6572522]
[1744264082596,8.76988783,1618.3,1618.2,5.4208422]
[1744264082998,8.76988783,1618.3,1618.2,0.4208422]
[1744264084103,8.76988783,1618.3,1618.2,1.6572522]
[1744264084407,2.53355783,1618.3,1618.2,1.6572522]
[1744264085708,2.53355783,1618.3,1618.2,3.3214522]
[1744264087804,2.53355783,1618.3,1618.2,1.6572522]
[1744264088006,3.76988783,1618.3,1618.2,1.6572522]
[1744264088306,2.53355783,1618.3,1618.2,1.6572522]
[1744264089213,3.76988783,1618.3,1618.2,1.6572522]
[1744264089415,2.90478783,1618.3,1618.2,1.6572522]
[1744264089619,1.66845783,1618.3,1618.2,3.2701522]
[1744264091815,0.00925783,1618.3,1618.2,3.2701522]
[1744264092912,0.00925783,1618.3,1618.2,9.2661522]
[1744264093327,0.00925783,1618.3,1618.2,14.2661522]
[1744264093517,1.24558783,1618.3,1618.2,12.6532522]
[1744264094013,2.15298783,1618.3,1618.2,12.6532522]
[1744264094522,0.91665783,1618.3,1618.2,7.6532522]
[1744264095019,0.91665783,1618.3,1618.2,9.1956522]
[1744264095619,1.68395783,1618.3,1618.2,9.1956522]
[1744264095915,1.68395783,1618.3,1618.2,7.6532522]
[1744264097224,1.68395783,1618.3,1618.2,10.8610522]
[1744264098416,2.92028783,1618.3,1618.2,10.8610522]
[1744264098719,7.92028783,1618.3,1618.2,3.6286422]
[1744264102115,1.23648,1618.1,1618.0,0.00925783]
[1744264102320,1.23648,1618.1,1617.8,3.2078]
[1744264102321,1.23664,1617.9,1617.8,3.2078]
[1744264102619,1.23664,1617.9,1617.8,4.44451]
[1744264102927,3.76961,1618.0,1617.9,1.23664]
[1744264103118,2.16541,1618.0,1617.9,1.23664]
[1744264103722,2.16541,1618.0,1617.8,4.45371783]
[1744264103723,5.9288,1618.0,1617.8,4.45371783]
[1744264104025,2.14164,1617.9,1617.8,3.21705783]
[1744264104223,2.14164,1617.9,1617.8,4.45376783]
[1744264104829,2.14164,1617.9,1617.8,3.21705783]
[1744264105126,2.14164,1617.9,1617.8,4.45376783]
[1744264105523,1.23664,1617.9,1617.8,4.45376783]
[1744264105924,2.16543,1618.0,1617.9,1.23664]
[1744264106131,1.23664,1617.9,1617.8,6.93440783]
[1744264106526,9.42473037,1617.9,1617.8,6.93440783]
[1744264106830,8.18809037,1617.9,1617.8,6.93440783]
[1744264107928,9.42473037,1617.9,1617.8,6.93440783]
[1744264108128,9.42473037,1617.9,1617.8,3.21705783]
[1744264108322,10.28713037,1617.9,1617.8,3.21705783]
[1744264108523,13.49493037,1617.9,1617.8,0.00925783]
[1744264108728,15.28713037,1617.9,1617.8,0.00925783]
[1744264109130,18.49493037,1617.9,1617.8,0.00925783]
[1744264110027,18.49493037,1617.9,1617.5,5.97973]
[1744264110028,1.23686,1617.6,1617.5,3.2078]
[1744264110330,5.44086,1617.6,1617.5,3.2078]
[1744264110729,1.23702,1617.4,1617.3,4.9521]
[1744264111032,1.23702,1617.4,1617.3,6.18919]
[1744264111223,1.23702,1617.4,1617.3,7.72419]
[1744264111734,2.138,1617.5,1617.4,1.23702]
[1744264111943,5.44093,1617.6,1617.5,1.23694]
[1744264114732,1.23694,1617.5,1617.4,2.84126]
[1744264115234,5.44094,1617.6,1617.5,1.23694]
[1744264115426,5.44094,1617.6,1617.5,2.88354]
[1744264115933,5.44094,1617.6,1617.5,6.09134]
[1744264116132,10.28843534,1617.6,1617.5,6.09134]
[1744264118440,10.28843534,1617.6,1617.5,4.8544]
[1744264118638,10.28843534,1617.6,1617.5,6.09134]
[1744264119141,4.84749534,1617.6,1617.5,6.09134]
[1744264120638,10.28933534,1617.7,1617.6,1.23686]
[1744264120830,10.28933534,1617.7,1617.6,4.72386]
[1744264121640,9.05249534,1617.7,1617.6,4.72386]
[1744264122238,6.08428534,1617.7,1617.6,4.72386]
[1744264122436,4.84749534,1617.7,1617.6,4.72386]
[1744264122741,4.84749534,1617.7,1617.6,9.72386]
[1744264123043,4.84749534,1617.7,1617.6,14.72386]
[1744264126233,5.44157,1618.0,1617.9,1.23664]
[1744264126435,5.44157,1618.0,1617.9,4.44444]
[1744264127941,5.44157,1618.0,1617.9,5.33634]
[1744264128145,4.205,1618.0,1617.9,5.33634]
[1744264128343,4.205,1618.0,1617.9,7.94324]
[1744264130237,4.84749534,1618.1,1618.0,1.23656]
[1744264130437,4.84749534,1618.1,1618.0,2.82026]
[1744264130641,4.84749534,1618.2,1618.1,1.23648]
[1744264130937,4.84749534,1618.2,1618.1,6.02798]
[1744264133535,6.08390534,1618.2,1618.1,6.02798]
[1744264133843,8.65700534,1618.2,1618.1,6.02798]
[1744264134043,9.54300534,1618.2,1618.1,6.02798]
[1744264134347,9.54300534,1618.2,1618.1,4.44428]
[1744264134744,4.69551,1618.2,1618.1,4.44428]
[1744264135440,4.21225783,1618.3,1618.2,1.23641]
[1744264135645,4.21225783,1618.3,1618.2,2.78141]
[1744264135950,4.21225783,1618.3,1618.2,4.65841]
[1744264136248,0.00925783,1618.3,1618.2,4.65841]
[1744264137645,1.24558783,1618.3,1618.2,4.65841]
[1744264137845,0.00925783,1618.3,1618.2,4.65841]
[1744264138238,1.24558783,1618.3,1618.2,4.65841]
[1744264138445,2.88218783,1618.3,1618.2,4.65841]
[1744264138738,1.64585783,1618.3,1618.2,4.65841]
[1744264139643,0.00925783,1618.3,1618.2,4.65841]
[1744264140249,1.24558783,1618.3,1618.2,4.65841]
[1744264140538,1.24558783,1618.3,1618.2,2.78141]
[1744264140738,1.24558783,1618.3,1618.1,9.21305783]
[1744264140739,1.23641,1618.2,1618.1,9.21305783]
[1744264140950,7.93631,1618.2,1618.1,6.00525783]
[1744264141143,12.93631,1618.2,1618.1,6.00525783]
[1744264142650,7.93631,1618.2,1618.1,6.00525783]
[1744264144254,16.12423926,1618.2,1618.1,6.00525783]
[1744264145756,16.12423926,1618.2,1618.1,0.00925783]
[1744264149253,21.12423926,1618.2,1618.1,0.00925783]
[1744264149459,22.97892926,1618.2,1617.7,3.2078]
[1744264149649,1.23686,1617.6,1617.5,3.2078]
[1744264150259,2.76126,1617.6,1617.5,3.2078]
[1744264152756,2.76126,1617.6,1617.5,4.44474]
[1744264153159,1.23686,1617.6,1617.5,4.44474]
[1744264153359,1.23686,1617.6,1617.5,5.40534]
[1744264153558,1.23686,1617.6,1617.5,4.1684]
[1744264153954,2.89726,1617.6,1617.5,5.7384]
[1744264154365,3.82472594,1617.6,1617.5,5.7384]
[1744264155764,3.82472594,1617.6,1617.5,6.97534]
[1744264155966,3.82472594,1617.6,1617.5,5.7384]
[1744264158154,2.89726,1617.6,1617.5,5.7384]